bitfinex-derivatives/quotes_SOLF0:USTF0_20241216
["timestamp","ask_amount","ask_price","bid_price","bid_amount"]
[1734340172574,9.81097816,220.04,219.94,8.35]
[1734340172772,2.2741,219.95,219.94,8.35]
[1734340175773,2.2741,219.95,219.94,5.17]
[1734340176674,9.81097816,219.96,219.78,2.34]
[1734340176971,9.81097816,219.92,219.84,1.4319]
[1734340177171,2.34,219.91,219.84,1.4319]
[1734340177371,2.2749,219.87,219.84,1.4319]
[1734340177777,2.34,219.91,219.84,7.6519]
[1734340178769,2.2749,219.87,219.84,7.6519]
[1734340178974,2.34,219.91,219.84,7.6519]
[1734340180175,2.2749,219.87,219.84,7.6519]
[1734340180571,2.2749,219.87,219.85,5.12885881]
[1734340180775,2.2749,219.87,219.84,7.6519]
[1734340180968,2.275,219.86,219.85,5.12886227]
[1734340181176,2.34,219.91,219.84,6.22]
[1734340181177,9.81097816,219.89,219.84,6.22]
[1734340181778,2.2751,219.86,219.84,6.22]
[1734340182077,9.81097816,219.89,219.84,6.22]
[1734340183180,2.2751,219.85,219.84,6.22]
[1734340183677,2.275,219.86,219.84,6.22]
[1734340184977,2.3,219.88,219.84,6.22]
[1734340187079,2.3,219.88,219.84,8.4951]
[1734340187479,9.81097816,219.92,219.86,2.275]
[1734340187480,2.2745,219.91,219.86,2.275]
[1734340187678,2.2745,219.91,219.84,6.22]
[1734340187679,2.3,219.91,219.84,6.22]
[1734340187977,2.3,219.91,219.85,8.2237401]
[1734340188174,9.81097816,219.92,219.85,3.0969]
[1734340188374,12.08547816,219.92,219.87,2.2749]
[1734340188578,9.81097816,219.92,219.85,3.0969]
[1734340188779,2.2745,219.91,219.85,5.3719]
[1734340189278,2.2745,219.91,219.85,3.0969]
[1734340189479,2.2745,219.91,219.86,2.275]
[1734340189878,2.2746,219.9,219.85,3.0969]
[1734340190078,9.81097816,219.92,219.85,3.0969]
[1734340190687,2.2746,219.9,219.85,5.372]
[1734340191189,9.81097816,219.92,219.85,5.372]
[1734340192175,9.81097816,219.92,219.85,2.2751]
[1734340192376,9.81097816,219.92,219.84,8.4952]
[1734340192980,9.81097816,219.92,219.84,6.22]
[1734340192981,2.2749,219.88,219.84,6.22]
[1734340193180,9.81097816,219.92,219.84,6.22]
[1734340193381,9.81097816,219.89,219.84,6.22]
[1734340193684,2.2751,219.85,219.84,6.22]
[1734340194587,2.2749,219.86,219.84,6.22]
[1734340194783,2.3,219.9,219.84,6.22]
[1734340195185,2.2746,219.89,219.85,2.2749]
[1734340197890,2.2746,219.89,219.84,6.22]
[1734340198186,9.81097816,219.89,219.84,6.22]
[1734340198683,2.2749,219.86,219.84,6.22]
[1734340198889,9.81097816,219.89,219.84,6.22]
[1734340199186,2.3,219.9,219.84,6.22]
[1734340199187,9.81097816,219.86,219.84,6.22]
[1734340199786,4.575,219.85,219.84,6.22]
[1734340200188,9.81097816,219.89,219.84,6.22]
[1734340200387,2.3,219.88,219.84,6.22]
[1734340201187,2.2749,219.86,219.84,6.22]
[1734340201687,2.2748,219.87,219.84,6.22]
[1734340201884,9.81097816,219.89,219.84,6.22]
[1734340202083,12.11097816,219.89,219.84,6.22]
[1734340202285,2.3,219.89,219.85,2.275]
[1734340202682,2.3,219.89,219.8,2.3]
[1734340202893,2.275,219.86,219.79,2.3]
[1734340203492,2.275,219.86,219.82,2.2752]
[1734340204388,2.3,219.89,219.79,11.87]
[1734340204596,2.2748,219.87,219.82,2.2753]
[1734340205190,2.2747,219.88,219.85,2.275]
[1734340206587,2.3,219.9,219.79,9.57]
[1734340206886,5.33614729,219.91,219.65,4.7164]
[1734340206887,9.81097816,219.8,219.65,4.7164]
[1734340207086,9.81097816,219.76,219.66,13.32725256]
[1734340207287,2.3,219.75,219.67,5.12601067]
[1734340207593,2.3,219.75,219.65,4.7164]
[1734340207796,2.2764,219.72,219.66,2.277]
[1734340207991,2.2764,219.72,219.66,8.267]
[1734340208186,9.81097816,219.76,219.66,5.99]
[1734340208486,2.3,219.75,219.66,5.99]
[1734340208684,9.81097816,219.79,219.67,5.1254921]
[1734340208685,2.3,219.77,219.67,5.1254921]
[1734340208883,2.3,219.77,219.66,5.99]
[1734340208884,2.2762,219.74,219.66,5.99]
[1734340209489,2.3,219.76,219.71,2.2765]
[1734340209893,9.81097816,219.79,219.66,5.99]
[1734340210096,2.3,219.79,219.72,2.2763]
[1734340210687,2.2759,219.77,219.72,2.2763]
[1734340210993,2.3,219.79,219.66,5.99]
[1734340210994,12.11097816,219.79,219.7,2.2766]
[1734340211789,9.81097816,219.79,219.7,2.2766]
[1734340212090,2.3,219.78,219.7,2.2766]
[1734340212489,2.276,219.76,219.7,2.2766]
[1734340212692,2.3,219.78,219.7,2.2766]
[1734340213494,9.81097816,219.76,219.66,5.99]
[1734340213699,9.81097816,219.73,219.67,5.13533989]
[1734340213898,2.32,219.72,219.66,5.99]
[1734340214896,9.81097816,219.7,219.66,5.99]
[1734340215500,2.277,219.67,219.66,5.99]
[1734340215705,4.597,219.67,219.66,5.99]
[1734340216607,2.2766,219.71,219.66,5.99]
[1734340216797,9.81097816,219.76,219.66,5.99]
[1734340217011,2.32,219.75,219.67,5.13405372]
[1734340217202,2.32,219.75,219.66,5.99]
[1734340217203,2.32,219.75,219.68,5.13405372]
[1734340217405,2.32,219.75,219.69,5.13405372]
[1734340217700,4.5961,219.75,219.66,5.99]
[1734340217897,2.32,219.75,219.67,13.34932128]
[1734340218110,2.32,219.75,219.68,13.34932128]
[1734340218301,2.32,219.75,219.69,5.13435434]
[1734340218502,2.32,219.75,219.7,5.13435434]
[1734340218698,12.13097816,219.75,219.66,5.99]
[1734340219006,9.81097816,219.78,219.67,15.67154564]
[1734340219200,7.65848154,219.8,219.7,9.81097816]
[1734340219402,2.32,219.82,219.71,3.0277]
[1734340219608,2.32,219.82,219.72,10.53383402]
[1734340219902,2.32,219.82,219.73,13.34748028]
[1734340219903,5.37106716,219.81,219.73,13.34748028]
[1734340220102,5.37106716,219.81,219.74,13.34748028]
[1734340220303,5.37106716,219.81,219.75,13.34748028]
[1734340220505,2.2756,219.8,219.76,5.13364626]
[1734340220706,2.2756,219.8,219.77,5.13364626]
[1734340220915,2.2756,219.8,219.75,2.276]
[1734340221103,2.2756,219.8,219.76,5.1367932]
[1734340221407,4.5955,219.82,219.77,7.4126932]
[1734340221605,4.5955,219.82,219.77,2.2759]
[1734340222912,2.2755,219.81,219.77,2.2759]
[1734340223409,2.2758,219.79,219.74,9.723]
[1734340223617,9.81097816,219.81,219.75,5.13963725]
[1734340223911,2.32,219.8,219.74,7.4468]
[1734340224108,2.2761,219.76,219.74,7.4468]
[1734340224414,2.32,219.8,219.74,7.4468]
[1734340224907,2.32,219.8,219.74,5.99]
[1734340225509,9.81097816,219.78,219.74,5.99]
[1734340226414,2.2763,219.75,219.74,5.99]
[1734340226805,14.40727816,219.75,219.74,5.99]
[1734340227409,2.2766,219.72,219.71,3.18]
[1734340227607,12.08757816,219.72,219.71,3.18]
[1734340227805,9.81097816,219.72,219.61,2.2777]
[1734340228008,9.81097816,219.69,219.62,5.13978548]
[1734340228209,12.13097816,219.69,219.61,2.2777]
[1734340228409,12.13097816,219.69,219.62,5.1379748]
[1734340228608,12.13097816,219.69,219.61,2.2777]
[1734340229016,12.13097816,219.69,219.61,3.18]
[1734340229017,2.2772,219.66,219.61,3.18]
[1734340229912,2.32,219.69,219.61,3.18]
[1734340230116,2.2773,219.65,219.61,3.18]
[1734340231117,2.2775,219.64,219.61,3.18]
[1734340231818,2.2776,219.62,219.61,3.18]
[1734340232019,2.32,219.64,219.59,0.34747]
[1734340232418,2.2778,219.6,219.59,0.34747]
[1734340233016,15.77888091,219.6,219.46,3.0547]
[1734340233210,2.32,219.59,219.47,14.7694565]
[1734340233410,2.32,219.59,219.47,1.4365]
[1734340234118,15.77888091,219.56,219.47,1.4365]
[1734340234713,2.2789,219.5,219.47,1.4365]
[1734340234913,2.32,219.52,219.47,1.4365]
[1734340236025,2.32,219.52,219.46,3.18]
[1734340236413,2.32,219.52,219.41,3.7088]
[1734340237223,2.2792,219.48,219.41,3.7088]
[1734340237424,2.32,219.52,219.41,3.7088]
[1734340237722,5.3622863,219.5,219.41,4.619]
[1734340240426,7.6412863,219.5,219.41,4.619]
[1734340240628,9.9612863,219.5,219.41,4.619]
[1734340241424,9.9612863,219.5,219.44,2.2796]
[1734340241721,2.2791,219.49,219.44,2.2796]
[1734340242124,5.3622863,219.5,219.45,2.2794]
[1734340243028,5.3622863,219.5,219.43,2.2796]
[1734340243223,5.3622863,219.5,219.41,4.619]
[1734340243631,2.2789,219.51,219.45,2.2794]
[1734340243830,2.2789,219.51,219.41,4.619]
[1734340243831,2.3,219.54,219.41,4.619]
[1734340244331,2.2787,219.52,219.44,2.2794]
[1734340244535,2.2787,219.52,219.44,2.3]
[1734340245228,2.3,219.54,219.47,2.2792]
[1734340245434,5.46503399,219.54,219.45,1.5562]
[1734340245629,2.3,219.55,219.45,1.5562]
[1734340246533,2.3,219.55,219.45,3.8562]
[1734340246941,2.2785,219.54,219.49,2.279]
[1734340247634,15.77888091,219.6,219.45,3.8562]
[1734340247829,2.3,219.59,219.46,5.10146185]
[1734340248133,2.3,219.6,219.47,13.2624999]
[1734340248336,2.3,219.6,219.48,5.10146185]
[1734340248633,15.77888091,219.64,219.49,14.73299365]
[1734340248634,2.2779,219.61,219.49,14.73299365]
[1734340248827,2.2779,219.61,219.5,7.40146185]
[1734340249030,2.2779,219.61,219.51,5.10146185]
[1734340249234,4.5777,219.62,219.52,5.10146185]
[1734340249432,4.5777,219.62,219.53,5.10438434]
[1734340249733,4.5777,219.62,219.51,1.5508]
[1734340249734,2.3,219.62,219.51,1.5508]
[1734340249930,2.3,219.62,219.52,5.10444567]
[1734340249931,4.5778,219.62,219.52,5.10444567]
[1734340250227,4.5778,219.62,219.53,5.10444567]
[1734340250430,4.5778,219.62,219.57,2.2782]
[1734340252731,2.2779,219.6,219.51,11.41709635]
[1734340252932,2.2779,219.6,219.52,5.11171603]
[1734340253233,2.2779,219.6,219.53,5.11171603]
[1734340253435,2.2779,219.6,219.54,5.11171603]
[1734340253627,2.2779,219.6,219.51,11.41709635]
[1734340253937,9.86629635,219.61,219.52,5.11216911]
[1734340254235,9.86629635,219.61,219.51,3.8296]
[1734340254433,2.2783,219.57,219.51,3.8296]
[1734340254628,9.86629635,219.58,219.51,1.5508]
[1734340255229,2.2785,219.54,219.51,1.5508]
[1734340255735,2.2786,219.53,219.51,1.5508]
[1734340256237,9.86629635,219.58,219.51,1.5508]
[1734340256431,2.2785,219.54,219.51,1.5508]
[1734340256632,9.86629635,219.58,219.51,1.5508]
[1734340257232,9.86629635,219.55,219.47,2.2792]
[1734340257637,9.86629635,219.55,219.46,2.2793]
[1734340258330,9.86629635,219.52,219.43,1.5637]
[1734340258538,2.3,219.51,219.43,1.5637]
[1734340259736,4.5788,219.51,219.44,5.11503755]
[1734340259936,4.5788,219.51,219.43,1.5637]
[1734340260138,4.5788,219.51,219.47,2.2792]
[1734340260334,2.2791,219.48,219.43,1.5637]
[1734340260532,2.3,219.51,219.43,1.5637]
[1734340260835,2.2787,219.53,219.48,2.2791]
[1734340261335,2.3,219.55,219.48,2.2791]
[1734340261528,2.2787,219.53,219.48,2.2791]
[1734340261731,2.3,219.55,219.48,2.2791]
[1734340262937,2.2787,219.52,219.48,2.2791]
[1734340263833,2.2788,219.51,219.46,2.2792]
[1734340264645,2.2788,219.51,219.47,2.2792]
[1734340264934,2.2785,219.54,219.44,1.4471]
[1734340265130,2.3,219.56,219.47,3.18]
[1734340265338,12.16629635,219.59,219.47,3.18]
[1734340265534,12.16629635,219.59,219.48,2.3]
[1734340265731,9.86629635,219.53,219.47,3.18]
[1734340266036,2.3,219.52,219.47,3.18]
[1734340266231,2.279,219.5,219.47,3.18]
[1734340266439,2.3,219.52,219.47,5.4592]
[1734340266741,2.3,219.55,219.47,3.18]
[1734340266939,2.2786,219.54,219.47,3.18]
[1734340267143,2.3,219.55,219.47,3.18]
[1734340268933,2.3,219.55,219.48,5.13297914]
[1734340269137,2.3,219.55,219.47,3.18]
[1734340269336,2.3,219.55,219.48,5.137654]
[1734340269645,2.3,219.55,219.49,5.137654]
[1734340269847,2.3,219.55,219.47,3.18]
[1734340270036,2.3,219.55,219.47,5.4591]
[1734340270337,2.3,219.55,219.48,5.14190818]
[1734340270642,2.3,219.55,219.49,5.14190818]
[1734340270846,2.3,219.55,219.49,2.279]
[1734340270847,2.2787,219.53,219.49,2.279]
[1734340271142,2.2787,219.53,219.5,5.14666255]
[1734340271341,2.2787,219.53,219.49,2.279]
[1734340271534,2.2787,219.53,219.5,5.14723009]
[1734340271734,9.86629635,219.56,219.47,3.18]
[1734340271735,2.2788,219.51,219.47,3.18]
[1734340271940,2.2788,219.51,219.48,5.14740832]
[1734340272149,2.2788,219.51,219.49,5.14740832]
[1734340272345,2.2788,219.51,219.5,5.14740832]
[1734340272743,2.3,219.53,219.47,3.18]
[1734340272949,2.3,219.53,219.48,5.15151298]
[1734340273150,2.3,219.53,219.49,5.15151298]
[1734340273349,2.3,219.53,219.47,3.18]
[1734340273549,2.3,219.53,219.48,5.15463816]
[1734340273849,2.3,219.53,219.5,2.2789]
[1734340274043,4.5787,219.53,219.47,3.18]
[1734340274247,4.5787,219.53,219.48,13.40774276]
[1734340274449,4.5787,219.53,219.49,13.40774276]
[1734340274749,4.5787,219.53,219.5,5.15682414]
[1734340274945,4.5787,219.53,219.51,5.15682414]
[1734340275146,4.5787,219.53,219.52,5.15999922]
[1734340275548,9.86629635,219.56,219.52,5.15999922]
[1734340275549,2.2785,219.55,219.52,5.15999922]
[1734340275752,9.86629635,219.56,219.47,3.18]
[1734340276244,9.86629635,219.56,219.48,13.41710831]
[1734340276442,9.86629635,219.56,219.47,3.18]
[1734340276644,9.86629635,219.53,219.49,8.26120399]
[1734340276849,2.28,219.52,219.4,2.28]
[1734340277050,2.28,219.52,219.44,13.42657506]
[1734340277353,2.28,219.52,219.45,13.42657506]
[1734340277354,2.2792,219.48,219.45,13.42657506]
[1734340277545,2.2792,219.48,219.46,13.42657506]
[1734340277749,2.2792,219.48,219.47,5.16406733]
[1734340279054,2.28,219.52,219.47,5.16406733]
[1734340279247,2.28,219.55,219.48,13.42824231]
[1734340279447,2.28,219.57,219.45,3.18]
[1734340279651,2.2788,219.52,219.48,2.2791]
[1734340279853,2.2788,219.52,219.49,5.16474668]
[1734340280147,2.2788,219.52,219.5,13.42796412]
[1734340280352,2.2788,219.52,219.51,5.16474668]
[1734340281059,2.2788,219.52,219.51,5.16473394]
[1734340281354,2.2789,219.52,219.51,5.16473394]
[1734340282655,2.2792,219.48,219.45,3.18]
[1734340282858,2.28,219.51,219.46,13.43235965]
[1734340283055,2.2794,219.46,219.45,3.18]
[1734340283253,2.2794,219.46,219.45,8.3483502]
[1734340283557,2.2794,219.46,219.45,3.18]
[1734340284446,2.28,219.51,219.45,3.18]
[1734340284651,2.28,219.51,219.46,5.16875215]
[1734340284950,2.28,219.51,219.45,3.18]
[1734340286660,2.2794,219.46,219.45,3.18]
[1734340287750,12.14629635,219.51,219.39,1.5032]
[1734340287948,12.14629635,219.51,219.4,13.43695418]
[1734340288147,12.14629635,219.51,219.38,0.30681]
[1734340288148,9.86629635,219.48,219.38,0.30681]
[1734340288548,2.28,219.41,219.38,0.30681]
[1734340289152,2.28,219.41,219.38,3.49681]
[1734340290253,2.28,219.44,219.38,3.49681]
[1734340291158,2.28,219.44,219.39,5.16182762]
[1734340291353,2.28,219.44,219.38,3.49681]
[1734340291858,2.28,219.44,219.39,5.16074448]
[1734340292059,2.28,219.44,219.38,3.49681]
[1734340292252,2.28,219.44,219.39,5.16016422]
[1734340292456,2.28,219.44,219.38,3.19]
[1734340292759,2.28,219.44,219.39,5.15967678]
[1734340292960,4.5597,219.44,219.4,2.28]
[1734340293264,2.28,219.44,219.38,3.19]
[1734340293458,2.28,219.44,219.39,5.15931974]
[1734340293760,2.28,219.44,219.38,3.19]
[1734340293962,2.28,219.44,219.39,5.15931974]
[1734340294265,2.28,219.48,219.38,3.19]
[1734340294560,2.28,219.49,219.39,15.69384099]
[1734340294863,2.2793,219.48,219.4,5.15865401]
[1734340295158,2.2793,219.48,219.41,5.15865401]
[1734340295361,2.2793,219.48,219.44,2.2795]
[1734340295757,2.28,219.51,219.41,2.28]
[1734340295958,2.2791,219.49,219.45,2.2794]
[1734340296357,2.28,219.51,219.41,2.28]
[1734340296661,2.28,219.51,219.42,5.16200094]
[1734340296860,2.28,219.51,219.43,5.16200094]
[1734340297162,2.28,219.51,219.44,5.16200094]
[1734340297360,2.28,219.51,219.46,2.2794]
[1734340297660,2.28,219.53,219.46,2.2794]
[1734340297860,2.279,219.51,219.46,2.2794]
[1734340298160,2.28,219.53,219.44,2.2795]
[1734340298363,2.2791,219.49,219.45,5.16568171]
[1734340298551,2.2791,219.49,219.44,2.2795]
[1734340298752,2.2791,219.49,219.45,5.16558397]
[1734340298960,2.2791,219.49,219.44,2.2795]
[1734340299163,2.2791,219.49,219.45,7.44497001]
[1734340299361,9.86629635,219.54,219.46,5.16557001]
[1734340299362,2.28,219.53,219.46,5.16557001]
[1734340299562,2.28,219.53,219.41,2.28]
[1734340299753,2.28,219.53,219.42,13.43331569]
[1734340299957,2.2789,219.51,219.47,2.2792]
[1734340300664,2.2788,219.52,219.43,9.86629635]
[1734340300861,2.2788,219.52,219.44,14.97188774]
[1734340301164,4.5585,219.55,219.5,2.2789]
[1734340301566,2.28,219.59,219.46,12.14629635]
[1734340301862,2.28,219.59,219.52,2.2787]
[1734340301863,2.2783,219.56,219.52,2.2787]
[1734340302662,2.2786,219.54,219.5,2.2789]
[1734340302856,2.2786,219.54,219.48,1.5306]
[1734340302857,2.28,219.59,219.48,1.5306]
[1734340303059,2.28,219.59,219.49,13.43247258]
[1734340303060,5.38265089,219.58,219.49,13.43247258]
[1734340303269,5.38265089,219.58,219.5,5.16633559]
[1734340303561,2.2786,219.54,219.51,5.16633559]
[1734340303762,2.26,219.57,219.48,1.5306]
[1734340303963,2.26,219.57,219.49,15.71029794]
[1734340303964,2.2785,219.55,219.49,15.71029794]
[1734340304165,2.26,219.57,219.5,5.16584536]
[1734340304466,2.26,219.57,219.51,5.16541423]
[1734340304667,2.26,219.57,219.49,2.2791]
[1734340304857,2.26,219.57,219.5,5.16553284]
[1734340305061,2.2785,219.55,219.49,2.2791]
[1734340305262,2.26,219.57,219.5,7.44443284]
[1734340305464,2.26,219.57,219.48,1.5306]
[1734340305768,2.2786,219.54,219.49,5.16547706]
[1734340305966,2.2786,219.54,219.5,5.16547706]
[1734340306162,2.2786,219.54,219.48,1.5306]
[1734340306366,2.2786,219.54,219.49,5.16545812]
[1734340306667,2.2784,219.55,219.5,5.16545812]
[1734340306867,2.2784,219.55,219.48,1.5306]
[1734340307365,2.2784,219.55,219.49,5.16528079]
[1734340307567,2.9667,219.66,219.5,5.16528079]
[1734340307772,2.9667,219.66,219.56,0.68]
[1734340307773,5.40161283,219.62,219.56,0.68]
[1734340308361,7.67931283,219.62,219.57,2.2781]
[1734340308560,5.40161283,219.62,219.56,0.68]
[1734340308765,5.40161283,219.62,219.57,5.16197652]
[1734340308966,2.26,219.64,219.56,0.68]
[1734340309172,9.86629635,219.67,219.57,5.16189078]
[1734340309468,2.26,219.67,219.58,5.15964608]
[1734340309667,2.26,219.67,219.59,5.15964608]
[1734340309962,2.26,219.68,219.57,1.4476]
[1734340310162,2.2773,219.65,219.61,2.2776]
[1734340310765,2.2773,219.65,219.6,2.2778]
[1734340310967,2.2773,219.65,219.57,1.4476]
[1734340311164,2.2772,219.67,219.62,2.2775]
[1734340311670,2.2773,219.66,219.62,2.2775]
[1734340313666,7.79234735,219.68,219.57,1.4476]
[1734340313969,9.86629635,219.67,219.57,1.4476]
[1734340314167,9.86629635,219.67,219.6,2.2778]
[1734340314367,2.2773,219.65,219.6,2.2778]
[1734340314565,7.79234735,219.68,219.6,2.2778]
[1734340314765,2.2773,219.66,219.6,2.2778]
[1734340314970,7.79234735,219.68,219.6,2.2778]
[1734340315270,7.79234735,219.68,219.59,2.2779]
[1734340316966,7.79234735,219.68,219.57,1.4476]
[1734340316967,9.86629635,219.67,219.57,3.7257]
[1734340317470,2.2777,219.62,219.57,3.7257]
[1734340317769,2.2777,219.62,219.57,1.4476]
[1734340318085,7.79234735,219.68,219.52,2.26]
[1734340318086,2.26,219.63,219.52,2.26]
[1734340318372,2.26,219.62,219.5,5.34991735]
[1734340318569,2.26,219.62,219.53,1.429]
[1734340318770,9.86629635,219.61,219.53,1.429]
[1734340319570,2.2786,219.54,219.49,2.279]
[1734340320473,2.26,219.57,219.47,1.4957]
[1734340320674,9.86629635,219.55,219.47,1.4957]
[1734340321571,9.86629635,219.55,219.44,2.2794]
[1734340321780,9.86629635,219.55,219.42,2.26]
[1734340322169,9.86629635,219.55,219.44,2.2795]
[1734340322880,9.86629635,219.55,219.4,9.86629635]
[1734340323085,9.86629635,219.55,219.42,2.2797]
[1734340323582,9.86629635,219.55,219.4,9.86629635]
[1734340323881,9.86629635,219.55,219.44,2.2794]
[1734340324085,2.2791,219.48,219.4,9.86629635]
[1734340324282,9.86629635,219.52,219.42,2.2796]
[1734340325283,2.279,219.49,219.42,2.2796]
[1734340325477,9.86629635,219.52,219.4,9.86629635]
[1734340325478,9.86629635,219.52,219.44,0.22418]
[1734340325787,2.26,219.51,219.44,0.22418]
[1734340326183,2.2792,219.48,219.44,0.22418]
[1734340326380,2.26,219.51,219.44,0.22418]
[1734340327485,2.2794,219.45,219.44,0.22418]
[1734340327989,2.2793,219.47,219.44,0.22418]
[1734340328286,15.21689152,219.52,219.46,0.68]
[1734340328482,2.26,219.5,219.46,0.68]
[1734340328688,15.21689152,219.52,219.46,0.68]
[1734340328884,2.26,219.51,219.46,0.68]
[1734340329882,2.2791,219.49,219.46,0.68]
[1734340330089,2.26,219.51,219.46,0.68]
[1734340331084,2.2792,219.47,219.46,0.68]
[1734340332384,2.2794,219.45,219.44,0.22418]
[1734340332586,4.5394,219.45,219.44,0.22418]
[1734340333289,2.2794,219.45,219.44,0.22418]
[1734340333982,5.35059517,219.52,219.44,0.22418]
[1734340333983,2.2793,219.47,219.44,0.22418]
[1734340334285,2.26,219.5,219.46,0.68]
[1734340334790,2.2791,219.48,219.46,0.68]
[1734340334991,2.26,219.5,219.46,0.68]
[1734340335391,2.2791,219.48,219.46,0.68]
[1734340335690,2.26,219.5,219.46,0.68]
[1734340335691,9.86629635,219.49,219.46,0.68]
[1734340336296,2.2792,219.47,219.46,0.68]
[1734340338490,2.2794,219.45,219.44,0.22418]
[1734340338994,4.5394,219.45,219.44,0.22418]
[1734340341092,4.5394,219.45,219.38,2.2801]
[1734340341093,2.26,219.45,219.38,2.2801]
[1734340341295,2.2797,219.43,219.38,2.2801]
[1734340341485,2.26,219.45,219.38,2.2801]
[1734340342091,2.2797,219.43,219.38,2.2801]
[1734340342290,2.26,219.45,219.37,2.2802]
[1734340343297,2.2798,219.42,219.37,2.2802]
[1734340344098,5.35059517,219.52,219.37,6.32497187]
[1734340344293,6.32497187,219.45,219.37,0.38146]
[1734340344498,2.26,219.44,219.37,0.38146]
[1734340344699,2.26,219.44,219.37,6.70643187]
[1734340345000,5.35059517,219.52,219.37,6.70643187]
[1734340345001,6.32497187,219.47,219.41,6.32497187]
[1734340345194,2.26,219.46,219.41,6.32497187]
[1734340345499,2.2794,219.45,219.41,8.60467187]
[1734340346296,2.2795,219.44,219.41,6.32497187]
[1734340346597,6.32497187,219.45,219.37,6.70643187]
[1734340346801,2.26,219.46,219.37,6.70643187]
[1734340346802,6.32497187,219.43,219.37,6.70643187]
[1734340347498,6.32497187,219.41,219.37,0.38146]
[1734340347704,6.32497187,219.39,219.37,0.38146]
[1734340347900,8.58497187,219.39,219.37,0.38146]
[1734340349203,2.2801,219.38,219.37,0.38146]
[1734340351803,8.60507187,219.38,219.37,0.38146]
[1734340354200,8.60507187,219.38,219.24,7.70248994]
[1734340354201,2.281,219.3,219.26,2.2813]
[1734340354401,6.32497187,219.31,219.2,2.26]
[1734340354605,8.58497187,219.3,219.2,2.26]
[1734340354804,2.2812,219.28,219.24,6.32497187]
[1734340354999,2.26,219.29,219.24,6.32497187]
[1734340355209,2.26,219.29,219.18,1.5615]
[1734340355404,2.2814,219.27,219.24,6.32497187]
[1734340355609,2.26,219.31,219.26,6.32497187]
[1734340355909,2.2808,219.32,219.28,2.2811]
[1734340356111,2.2808,219.32,219.26,6.32497187]
[1734340356611,2.2808,219.32,219.22,2.26]
[1734340356807,2.2808,219.32,219.27,6.32497187]
[1734340357013,2.26,219.33,219.27,6.32497187]
[1734340357208,2.26,219.33,219.27,8.60627187]
[1734340357404,6.32497187,219.35,219.29,6.32497187]
[1734340357604,2.26,219.36,219.31,2.2808]
[1734340357907,2.26,219.36,219.31,8.60577187]
[1734340358106,4.5403,219.36,219.31,2.2808]
[1734340359207,4.5403,219.36,219.32,2.2807]
[1734340359409,2.26,219.39,219.3,1.5078]
[1734340359611,2.26,219.39,219.3,11.39599651]
[1734340359913,2.2801,219.38,219.3,11.39599651]
[1734340360211,2.2801,219.38,219.31,5.1394213]
[1734340360411,2.2801,219.38,219.3,11.39599651]
[1734340360611,4.54,219.39,219.34,2.2805]
[1734340361008,9.88819651,219.41,219.3,11.39599651]
[1734340361208,2.26,219.4,219.3,11.39599651]
[1734340361408,5.48385713,219.48,219.3,13.65599651]
[1734340361611,5.48385713,219.48,219.33,9.88819651]
[1734340361612,17.63205364,219.48,219.33,9.88819651]
[1734340361805,17.63205364,219.48,219.41,0.68]
[1734340362609,9.88819651,219.42,219.41,0.68]
[1734340362812,12.12819651,219.42,219.41,0.68]
[1734340363013,14.40789651,219.42,219.41,0.68]